fUST/lending_fUST_20240226
["ID","MTS","AMOUNT","RATE_DAILY","PERIOD"]
[315200271,1708927844145,-500.0,0.00019726,2]
[315200272,1708927844154,-501.70449876,0.00019726,2]
[315200273,1708927844163,-539.47583065,0.00019726,2]
[315200274,1708927844171,-502.01865313,0.00019726,2]
[315200275,1708927844182,-201.81516256,0.00019726,2]
[315200276,1708927844191,-500.0,0.00019726,2]
[315200277,1708927844200,-500.0,0.00019726,2]
[315200278,1708927844210,-185.27418586,0.00019726,2]
[315200279,1708927844218,-500.0,0.00019726,2]
[315200280,1708927844227,-500.0,0.00019726,2]
[315200281,1708927844236,-502.11011131,0.00019726,2]
[315200282,1708927844246,-500.0,0.00019726,2]
[315200283,1708927844255,-1674.04,0.00019726,2]
[315200284,1708927844264,-719.22,0.00019726,2]
[315200285,1708927844273,-500.0,0.00019726,2]
[315200286,1708927844282,-500.0,0.00019726,2]
[315200287,1708927844291,-504.21322817,0.00019726,2]
[315200288,1708927844324,-508.64002911,0.00019726,2]
[315200289,1708927844333,-636.92,0.00019726,2]
[315200290,1708927844342,-390.70436853,0.00019726,2]
[315200291,1708927844351,-500.0,0.00019726,2]
[315200292,1708927844360,-500.0,0.00019726,2]
[315200293,1708927844370,-504.63239658,0.00019726,2]
[315200294,1708927844378,-504.21335184,0.00019726,2]
[315200295,1708927844387,-500.0,0.00019726,2]
[315200296,1708927844396,-500.0,0.00019726,2]
[315200297,1708927844405,-500.0,0.00019726,2]
[315200298,1708927844414,-566.54,0.00019726,2]
[315200299,1708927844423,-450.65957018,0.00019726,2]
[315200300,1708927844434,-500.0,0.00019726,2]
[315200301,1708927844443,-500.0,0.00019726,2]
[315200302,1708927844452,-500.0,0.00019726,2]
[315200303,1708927844461,-557.78269521,0.00019726,2]
[315200304,1708927844470,-500.0,0.00019726,2]
[315200305,1708927844480,-500.0,0.00019726,2]
[315200306,1708927844488,-2222.18,0.00019726,2]
[315200307,1708927844497,-1734.04,0.00019726,2]
[315200308,1708927844506,-500.0,0.00019726,2]
[315200309,1708927844515,-500.0,0.00019726,2]
[315200310,1708927844525,-500.0,0.00019726,2]
[315200311,1708927844534,-500.0,0.00019726,2]
[315200312,1708927844543,-505.95058571,0.00019726,2]
[315200313,1708927844553,-501.29954357,0.00019726,2]
[315200314,1708927844562,-500.0,0.00019726,2]
[315200315,1708927844571,-646.85521638,0.00019726,2]
[315200316,1708927844579,-500.0,0.00019726,2]
[315200317,1708927844588,-500.0,0.00019726,2]
[315200318,1708927844597,-500.0,0.00019726,2]
[315200319,1708927844606,-500.0,0.00019726,2]
[315200320,1708927844614,-976.5,0.00019726,2]
[315200321,1708927844623,-500.0,0.00019726,2]
[315200322,1708927844632,-500.0,0.00019726,2]
[315200323,1708927844641,-500.0,0.00019726,2]
[315200324,1708927844650,-501.72333826,0.00019726,2]
[315200325,1708927844658,-500.0,0.00019726,2]
[315200326,1708927844668,-500.0,0.00019726,2]
[315200327,1708927844676,-500.0,0.00019726,2]
[315200328,1708927844685,-500.0,0.00019726,2]
[315200329,1708927844694,-701.58,0.00019726,2]
[315200330,1708927844702,-371.5006517,0.00019726,2]
[315200331,1708927844711,-500.0,0.00019726,2]
[315200332,1708927844720,-1461.44,0.00019726,2]
[315200333,1708927844728,-500.0,0.00019726,2]
[315200334,1708927844737,-2040.15,0.00019726,2]
[315200335,1708927844746,-806.73,0.00019726,2]
[315200336,1708927844755,-500.0,0.00019726,2]
[315200337,1708927844763,-500.0,0.00019726,2]
[315200338,1708927844776,-500.0,0.00019726,2]
[315200339,1708927844786,-2675.42,0.00019726,2]
[315200340,1708927844795,-10236.78,0.00019726,2]
[315200341,1708927844804,-2536.83,0.00019726,2]
[315200342,1708927844814,-500.0,0.00019726,2]
[315200343,1708927844823,-500.0,0.00019726,2]
[315200344,1708927844832,-1847.58,0.00019726,2]
[315200345,1708927844842,-500.0,0.00019726,2]
[315200346,1708927844853,-380.88443286,0.00019726,2]
[315200347,1708927844862,-500.0,0.00019726,2]
[315200348,1708927844871,-3921.36,0.00019726,2]
[315200349,1708927844881,-1000.0,0.00019726,2]
[315200350,1708927844890,-500.0,0.00019726,2]
[315200351,1708927844899,-176.66942179,0.00019726,2]
[315200352,1708927844908,-500.0,0.00019726,2]
[315200353,1708927844917,-1905.33,0.00019726,2]
[315200354,1708927844926,-500.0,0.00019726,2]
[315200355,1708927844936,-500.0,0.00019726,2]
[315200356,1708927844946,-500.0,0.00019726,2]
[315200357,1708927844955,-20556.62,0.00019726,2]
[315200358,1708927844965,-500.0,0.00019726,2]
[315200359,1708927844974,-2003.14,0.00019726,2]
[315200360,1708927844984,-500.0,0.00019726,2]
[315200361,1708927844993,-500.0,0.00019726,2]
[315200362,1708927845004,-500.0,0.00019726,2]
[315200363,1708927845013,-500.0,0.00019726,2]
[315200364,1708927845022,-631.36,0.00019726,2]
[315200365,1708927845032,-500.0,0.00019726,2]
[315200366,1708927845041,-500.0,0.00019726,2]
[315200367,1708927845050,-500.0,0.00019726,2]
[315200368,1708927845059,-503.11212196,0.00019726,2]
[315200369,1708927845069,-500.0,0.00019726,2]
[315200370,1708927845079,-2035.12,0.00019726,2]
[315200371,1708927845088,-1561.53,0.00019726,2]
[315200372,1708927845097,-500.0,0.00019726,2]
[315200373,1708927845107,-500.0,0.00019726,2]
[315200374,1708927845116,-7228.24,0.00019726,2]
[315200375,1708927845125,-500.0,0.00019726,2]
[315200376,1708927845135,-3986.82,0.00019726,2]
[315200377,1708927845144,-20485.21,0.00019726,2]
[315200378,1708927845154,-502.15505867,0.00019726,2]
[315200379,1708927845163,-500.0,0.00019726,2]
[315200380,1708927845173,-501.16867912,0.00019726,2]
[315200381,1708927845183,-776.65,0.00019726,2]
[315200382,1708927845193,-500.0,0.00019726,2]
[315200383,1708927845202,-3188.0,0.00019726,2]
[315200384,1708927845211,-500.0,0.00019726,2]
[315200385,1708927845220,-2266.34,0.00019726,2]
[315200386,1708927845229,-2701.83,0.00019726,2]
[315200387,1708927845239,-1412.67,0.00019726,2]
[315200388,1708927845248,-500.0,0.00019726,2]
[315200389,1708927845257,-1585.98,0.00019726,2]
[315200390,1708927845266,-1354.39,0.00019726,2]
[315200391,1708927845276,-1138.45,0.00019726,2]
[315200392,1708927845285,-2812.67,0.00019726,2]
[315200393,1708927845294,-702.06,0.00019726,2]
[315200394,1708927845303,-29169.02951691,0.00019789,2]
[315200395,1708927846022,-500.0,0.00019726,2]
[315200396,1708927846032,-59306.43057188,0.00019789,2]
[315200397,1708927846041,-5303.2156293,0.00019789,2]
[315200398,1708927846050,-2073.6309482,0.0001989,2]
[315200399,1708927846076,-537.80272664,0.00019177,2]
[315200701,1708928964128,-154.93802479,0.00017704,2]
[315200702,1708928964148,-653.04920302,0.00017704,2]
[315200703,1708928964169,-157.49277219,0.00017705,2]
[315200739,1708929032717,-92.50722781,0.00017705,2]
[315200740,1708929032727,-560.50006611,0.00018062,2]
[315200802,1708929038621,-92.54913691,0.00018062,2]
[315200803,1708929038630,-2523.9528131,0.00018063,2]
[315200804,1708929038640,-261.0,0.00018105,2]
[315200805,1708929038648,-24900.0,0.00018106,2]
[315200806,1708929038657,-854.331891,0.00018175,2]
[315200807,1708929038665,-150.0,0.000189,2]
[315200808,1708929038675,-611.15,0.00019168,3]
[315200809,1708929038684,-173.10351334,0.00019176,2]
[315200810,1708929038693,-1221.83220068,0.00019176,2]
[315200811,1708929038704,-369.31920304,0.00019176,2]
[315200812,1708929038714,-1878.97320586,0.00019176,2]
[315200813,1708929038723,-154.93802479,0.00019177,2]
[315200814,1708929038732,-501.7060502,0.00019178,2]
[315200815,1708929038742,-500.0,0.00019178,2]
[315200816,1708929038751,-207.50207294,0.00019178,2]
[315200817,1708929038760,-1606.41,0.00019178,2]
[315200818,1708929038769,-501.49214266,0.00019178,2]
[315200819,1708929038778,-500.0,0.00019178,2]
[315200820,1708929038787,-500.0,0.00019178,2]
[315200821,1708929038797,-500.0,0.00019178,2]
[315200822,1708929038806,-500.0,0.00019178,2]
[315200823,1708929038815,-500.0,0.00019178,2]
[315200824,1708929038956,-501.32076136,0.00019178,2]
[315200825,1708929038965,-500.0,0.00019178,2]
[315200826,1708929038974,-500.0,0.00019178,2]
[315200827,1708929038984,-548.47261146,0.00019178,2]
[315200828,1708929038993,-500.0,0.00019178,2]
[315200829,1708929039002,-516.12591653,0.00019178,2]
[315200830,1708929039011,-500.0,0.00019178,2]
[315200831,1708929039020,-501.00129828,0.00019178,2]
[315200832,1708929039029,-500.60648921,0.00019178,2]
[315200833,1708929039038,-500.0,0.00019178,2]
[315200834,1708929039047,-500.0,0.00019178,2]
[315200835,1708929039056,-501.23926151,0.00019178,2]
[315200836,1708929039065,-500.0,0.00019178,2]
[315200837,1708929039074,-640.94855837,0.00019178,2]
[315200838,1708929039084,-500.0,0.00019178,2]
[315200839,1708929039093,-500.0,0.00019178,2]
[315200840,1708929039103,-567.74,0.00019178,2]
[315200841,1708929039112,-497.00174819,0.00019178,2]
[315200842,1708929039121,-500.73988973,0.00019178,2]
[315200843,1708929039129,-500.0,0.00019178,2]
[315200844,1708929039139,-504.45809868,0.00019178,2]
[315200845,1708929039151,-500.74176148,0.00019178,2]
[315200846,1708929039160,-500.0,0.00019178,2]
[315200847,1708929039169,-500.0,0.00019178,2]
[315200848,1708929039178,-500.0,0.00019178,2]
[315200849,1708929039188,-500.0,0.00019178,2]
[315200850,1708929039198,-500.0,0.00019178,2]
[315200851,1708929039207,-500.0,0.00019178,2]
[315200852,1708929039215,-500.0,0.00019178,2]
[315200853,1708929039226,-500.0,0.00019178,2]
[315200854,1708929039235,-500.76681216,0.00019178,2]
[315200855,1708929039244,-500.0,0.00019178,2]
[315200856,1708929039253,-234.57397735,0.00019178,2]
[315200857,1708929039262,-500.3462092,0.00019178,2]
[315200858,1708929039272,-500.0,0.00019178,2]
[315200859,1708929039281,-359.8403748,0.00019178,2]
[315200860,1708929039290,-501.0884164,0.00019178,2]
[315200861,1708929039299,-500.0,0.00019178,2]
[315200862,1708929039308,-500.0,0.00019178,2]
[315200863,1708929039317,-500.0,0.00019178,2]
[315200864,1708929039326,-500.0,0.00019178,2]
[315200865,1708929039334,-500.0,0.00019178,2]
[315200866,1708929039343,-500.0,0.00019178,2]
[315200867,1708929039352,-500.58116796,0.00019178,2]
[315200868,1708929039361,-500.0,0.00019178,2]
[315200869,1708929039370,-500.0,0.00019178,2]
[315200870,1708929039379,-500.0,0.00019178,2]
[315200871,1708929039387,-500.0,0.00019178,2]
[315200872,1708929039397,-501.13519098,0.00019178,2]
[315200873,1708929039405,-500.0,0.00019178,2]
[315200874,1708929039415,-266.51557641,0.00019178,2]
[315200875,1708929039424,-500.0,0.00019178,2]
[315200876,1708929039433,-500.0,0.00019178,2]
[315200877,1708929039442,-500.0,0.00019178,2]
[315200878,1708929039451,-500.0,0.00019178,2]
[315200879,1708929039460,-500.0,0.00019178,2]
[315200880,1708929039469,-610.38,0.00019178,2]
[315200881,1708929039478,-505.83665894,0.00019178,2]
[315200882,1708929039487,-507.460159,0.00019178,2]
[315200883,1708929039496,-536.2492443,0.00019178,2]
[315200884,1708929039505,-500.0,0.00019178,2]
[315200885,1708929039514,-1400.55,0.00019178,2]
[315200886,1708929039523,-500.0,0.00019178,2]
[315200887,1708929039532,-500.0,0.00019178,2]
[315200888,1708929039542,-773.11,0.00019178,2]
[315200889,1708929039550,-500.0,0.00019178,2]
[315200890,1708929039560,-500.0,0.00019178,2]
[315200891,1708929039568,-500.0,0.00019178,2]
[315200892,1708929039578,-502.20415089,0.00019178,2]
[315200893,1708929039587,-502.89262175,0.00019178,2]
[315200894,1708929039597,-500.0,0.00019178,2]
[315200895,1708929039606,-500.0,0.00019178,2]
[315200896,1708929039616,-588.75636197,0.00019178,2]
[315200897,1708929039625,-500.0,0.00019178,2]
[315200898,1708929039635,-500.0,0.00019178,2]
[315200899,1708929039645,-1005.8616059,0.00019178,2]
[315200900,1708929039654,-500.0,0.00019178,2]
[315200901,1708929039663,-500.89874379,0.00019178,2]
[315200902,1708929039673,-470.37536287,0.00019178,2]
[315200903,1708929039683,-500.0,0.00019178,2]
[315200904,1708929039692,-500.0,0.00019178,2]
[315200905,1708929039702,-500.0,0.00019178,2]
[315200906,1708929039711,-500.0,0.00019178,2]
[315200907,1708929039720,-500.0,0.00019178,2]
[315200908,1708929039729,-2159.94,0.00019178,2]
[315200909,1708929039738,-500.0,0.00019178,2]
[315200910,1708929039748,-500.0,0.00019178,2]
[315200911,1708929039757,-500.0,0.00019178,2]
[315200912,1708929039766,-500.0,0.00019178,2]
[315200913,1708929039775,-500.0,0.00019178,2]
[315200914,1708929039784,-500.0,0.00019178,2]
[315200915,1708929039794,-500.87195388,0.00019178,2]
[315200916,1708929039803,-631.67993521,0.00019178,2]
[315200917,1708929039813,-500.0,0.00019178,2]
[315200918,1708929039822,-500.0,0.00019178,2]
[315200919,1708929039831,-500.49663099,0.00019178,2]
[315200920,1708929039840,-500.50414793,0.00019178,2]
[315200921,1708929039848,-500.0,0.00019178,2]
[315200922,1708929039856,-1733.05,0.00019178,2]
[315200923,1708929039865,-500.0,0.00019178,2]
[315200924,1708929039874,-500.0,0.00019178,2]
[315200925,1708929039882,-500.0,0.00019178,2]
[315200926,1708929039891,-500.0,0.00019178,2]
[315200927,1708929039901,-500.0,0.00019178,2]
[315200928,1708929039910,-500.0,0.00019178,2]
[315200929,1708929039919,-500.0,0.00019178,2]
[315200930,1708929039928,-500.0,0.00019178,2]
[315200931,1708929039937,-500.0,0.00019178,2]
[315200932,1708929039946,-500.0,0.00019178,2]
[315200933,1708929039955,-312.51592479,0.00019178,2]
[315200934,1708929039963,-500.0,0.00019178,2]
[315200935,1708929039972,-500.0,0.00019178,2]
[315200936,1708929039981,-500.0,0.00019178,2]
[315200937,1708929039990,-242.83946742,0.00019178,2]
[315200938,1708929039999,-702.06,0.00019178,2]
[315200939,1708929040008,-500.0,0.00019178,2]
[315200940,1708929040018,-500.0,0.00019178,2]
[315200941,1708929040027,-500.0,0.00019178,2]
[315200942,1708929040036,-500.0,0.00019178,2]
[315200943,1708929040045,-500.0,0.00019178,2]
[315200945,1708929040053,-500.0,0.00019178,2]
[315200946,1708929040062,-500.0,0.00019178,2]
[315200947,1708929040072,-977.29,0.00019178,2]
[315200948,1708929040081,-500.0,0.00019178,2]
[315200949,1708929040090,-500.0,0.00019178,2]
[315200951,1708929040100,-2940.52,0.00019178,2]
[315200953,1708929040109,-500.0,0.00019178,2]
[315200954,1708929040117,-732.84,0.00019178,2]
[315200955,1708929040126,-500.0,0.00019178,2]
[315200956,1708929040135,-1189.16,0.00019178,2]
[315200957,1708929040149,-500.0,0.00019178,2]
[315200958,1708929040158,-500.0,0.00019178,2]
[315200959,1708929040165,-500.52146874,0.00019178,2]
[315200960,1708929040175,-500.0,0.00019178,2]
[315200961,1708929040184,-500.0,0.00019178,2]
[315200962,1708929040193,-2045.7,0.00019178,2]
[315200963,1708929040202,-500.0,0.00019178,2]
[315200964,1708929040211,-500.0,0.00019178,2]
[315200965,1708929040220,-500.0,0.00019178,2]
[315200966,1708929040229,-500.0,0.00019178,2]
[315200967,1708929040239,-500.0,0.00019178,2]
[315200968,1708929040248,-500.0,0.00019178,2]
[315200969,1708929040257,-500.0,0.00019178,2]
[315200970,1708929040265,-500.0,0.00019178,2]
[315200971,1708929040274,-500.0,0.00019178,2]
[315200972,1708929040283,-1354.39,0.00019178,2]
[315200973,1708929040293,-500.0,0.00019178,2]
[315200974,1708929040302,-500.0,0.00019178,2]
[315200975,1708929040312,-502.22210749,0.00019178,2]
[315200976,1708929040321,-500.0,0.00019178,2]
[315200977,1708929040331,-500.0,0.00019178,2]
[315200978,1708929040340,-2685.56,0.00019178,2]
[315200979,1708929040349,-10264.98,0.00019178,2]
[315200980,1708929040358,-500.0,0.00019178,2]
[315200981,1708929040367,-833.58,0.00019178,2]
[315200982,1708929040376,-500.0,0.00019178,2]
[315200983,1708929040385,-500.0,0.00019178,2]
[315200984,1708929040394,-501.28445651,0.00019178,2]
[315200985,1708929040403,-2541.32,0.00019178,2]
[315200986,1708929040412,-212.2436076,0.00019178,2]
[315200987,1708929040421,-629.6441881,0.00019178,2]
[315200988,1708929040430,-3924.44,0.00019178,2]
[315200989,1708929040439,-1850.78,0.00019178,2]
[315200990,1708929040448,-1000.0,0.00019178,2]
[315200991,1708929040457,-500.0,0.00019178,2]
[315200992,1708929040466,-500.0,0.00019178,2]
[315200993,1708929040475,-500.0,0.00019178,2]
[315200994,1708929040484,-500.0,0.00019178,2]
[315200995,1708929040493,-500.0,0.00019178,2]
[315200996,1708929040502,-500.0,0.00019178,2]
[315200997,1708929040511,-500.0,0.00019178,2]
[315200998,1708929040520,-500.0,0.00019178,2]
[315200999,1708929040530,-500.0,0.00019178,2]
[315201000,1708929040540,-500.0,0.00019178,2]
[315201001,1708929040549,-500.0,0.00019178,2]
[315201002,1708929040558,-500.0,0.00019178,2]
[315201003,1708929040567,-500.0,0.00019178,2]
[315201004,1708929040577,-500.0,0.00019178,2]
[315201005,1708929040585,-500.0,0.00019178,2]
[315201006,1708929040594,-501.38948075,0.00019178,2]
[315201007,1708929040603,-500.0,0.00019178,2]
[315201008,1708929040612,-500.0,0.00019178,2]
[315201009,1708929040622,-500.0,0.00019178,2]
[315201010,1708929040632,-266.78686082,0.00019178,2]
[315201011,1708929040641,-501.16229543,0.00019178,2]
[315201012,1708929040651,-573.72782983,0.00019178,2]
[315201013,1708929040660,-1990.57,0.00019178,2]
[315201014,1708929040669,-2094.19,0.00019178,2]
[315201015,1708929040679,-500.0,0.00019178,2]
[315201016,1708929040689,-500.0,0.00019178,2]
[315201017,1708929040698,-500.20438763,0.00019178,2]
[315201018,1708929040707,-501.12589823,0.00019178,2]
[315201019,1708929040716,-500.0,0.00019178,2]
[315201020,1708929040725,-500.0,0.00019178,2]
[315201021,1708929040734,-500.0,0.00019178,2]
[315201022,1708929040744,-500.0,0.00019178,2]
[315201023,1708929040753,-500.0,0.00019178,2]
[315201024,1708929040763,-500.0,0.00019178,2]
[315201025,1708929040772,-500.0,0.00019178,2]
[315201026,1708929040782,-500.0,0.00019178,2]
[315201027,1708929040791,-21483.05,0.00019178,2]
[315201028,1708929040800,-268.97832651,0.00019178,2]
[315201029,1708929040809,-1241.18,0.00019178,2]
[315201030,1708929040819,-500.0,0.00019178,2]
[315201031,1708929040829,-500.0,0.00019178,2]
[315201032,1708929040838,-501.43554536,0.00019178,2]
[315201033,1708929040847,-500.0,0.00019178,2]
[315201034,1708929040857,-500.0,0.00019178,2]
[315201035,1708929040866,-500.0,0.00019178,2]
[315201036,1708929040875,-2127.63,0.00019178,2]
[315201037,1708929040883,-518.49613271,0.00019178,2]
[315201038,1708929040892,-500.0,0.00019178,2]
[315201039,1708929040901,-500.0,0.00019178,2]
[315201040,1708929040910,-500.0,0.00019178,2]
[315201041,1708929040919,-500.0,0.00019178,2]
[315201042,1708929040929,-500.0,0.00019178,2]
[315201043,1708929040938,-500.0,0.00019178,2]
[315201044,1708929040947,-631.36,0.00019178,2]
[315201045,1708929040956,-500.71576396,0.00019178,2]
[315201046,1708929040966,-500.0,0.00019178,2]
[315201047,1708929040974,-503.07483176,0.00019178,2]
[315201048,1708929040983,-500.0,0.00019178,2]
[315201049,1708929040993,-500.0,0.00019178,2]
[315201050,1708929041002,-500.0,0.00019178,2]
[315201051,1708929041011,-500.0,0.00019178,2]
[315201052,1708929041020,-500.0,0.00019178,2]
[315201053,1708929041029,-500.0,0.00019178,2]
[315201054,1708929041038,-500.0,0.00019178,2]
[315201055,1708929041047,-500.0,0.00019178,2]
[315201056,1708929041056,-500.0,0.00019178,2]
[315201057,1708929041065,-500.0,0.00019178,2]
[315201058,1708929041074,-625.93045909,0.00019178,2]
[315201059,1708929041083,-500.0,0.00019178,2]
[315201060,1708929041092,-500.0,0.00019178,2]
[315201061,1708929041102,-500.0,0.00019178,2]
[315201062,1708929041111,-500.0,0.00019178,2]
[315201063,1708929041120,-1632.51,0.00019178,2]
[315201064,1708929041129,-500.0,0.00019178,2]
[315201065,1708929041139,-500.0,0.00019178,2]
[315201066,1708929041151,-3327.36,0.00019178,2]
[315201067,1708929041160,-4168.04,0.00019178,2]
[315201068,1708929041169,-500.0,0.00019178,2]
[315201069,1708929041180,-500.0,0.00019178,2]
[315201070,1708929041191,-7556.79,0.00019178,2]
[315201071,1708929041200,-500.0,0.00019178,2]
[315201072,1708929041211,-500.0,0.00019178,2]
[315201073,1708929041220,-500.0,0.00019178,2]
[315201074,1708929041230,-1509.28,0.00019178,2]
[315201075,1708929041239,-500.0,0.00019178,2]
[315201076,1708929041249,-500.0,0.00019178,2]
[315201077,1708929041259,-500.0,0.00019178,2]
[315201078,1708929041268,-21511.25,0.00019178,2]
[315201079,1708929041277,-451.87442518,0.00019178,2]
[315201080,1708929041286,-500.0,0.00019178,2]
[315201081,1708929041295,-500.0,0.00019178,2]
[315201082,1708929041305,-1713.03,0.00019178,2]
[315201083,1708929041315,-500.0,0.00019178,2]
[315201084,1708929041325,-2879.7,0.00019178,2]
[315201085,1708929041334,-500.0,0.00019178,2]
[315201086,1708929041344,-500.0,0.00019178,2]
[315201087,1708929041353,-501.66893489,0.00019178,2]
[315201088,1708929041362,-500.0,0.00019178,2]
[315201089,1708929041370,-501.86676046,0.00019178,2]
[315201090,1708929041379,-500.0,0.00019178,2]
[315201091,1708929041388,-740.45,0.00019178,2]
[315201092,1708929041397,-500.0,0.00019178,2]
[315201093,1708929041407,-500.91762408,0.00019178,2]
[315201094,1708929041417,-811.01,0.00019178,2]
[315201095,1708929041427,-500.0,0.00019178,2]
[315201096,1708929041437,-500.0,0.00019178,2]
[315201097,1708929041447,-2388.75,0.00019178,2]
[315201098,1708929041456,-400.24472666,0.00019178,2]
[315201099,1708929041465,-165.859414,0.00019178,2]
[315201100,1708929041475,-164.669104,0.00019178,2]
[315201101,1708929041484,-166.666666,0.00019178,2]
[315201102,1708929041494,-4160.0295086,0.00019178,2]
[315201103,1708929041503,-153.0,0.000192,2]
[315201104,1708929041513,-200.5826354,0.000192,2]
[315201106,1708929041522,-153.0,0.000192,2]
[315201107,1708929041532,-306.0,0.000192,2]
[315201108,1708929041542,-153.0,0.000192,2]
[315201109,1708929041551,-386.3684105,0.000192,2]
[315201110,1708929041654,-153.0,0.000192,2]
[315201111,1708929041664,-500.0,0.00019451,2]
[315201112,1708929041673,-500.0,0.00019451,2]
[315201113,1708929041682,-500.0,0.00019451,2]
[315201114,1708929041690,-500.0,0.00019451,2]
[315201115,1708929041700,-500.0,0.00019452,2]
[315201116,1708929041709,-1606.41,0.00019452,2]
[315201117,1708929041718,-504.21322817,0.00019452,2]
[315201118,1708929041727,-500.0,0.00019452,2]
[315201119,1708929041736,-501.48262876,0.00019452,2]
[315201120,1708929041745,-500.0,0.00019452,2]
[315201121,1708929041755,-642.78312211,0.00019452,2]
[315201122,1708929041765,-399.1209651,0.00019452,2]
[315201123,1708929041774,-500.0,0.00019452,2]
[315201124,1708929041783,-500.0,0.00019452,2]
[315201125,1708929041791,-438.04326599,0.00019452,2]
[315201126,1708929041801,-503.13338535,0.00019452,2]
[315201127,1708929041810,-500.0,0.00019452,2]
[315201128,1708929041819,-500.0,0.00019452,2]
[315201129,1708929041829,-567.74,0.00019452,2]
[315201130,1708929041838,-504.12794573,0.00019452,2]
[315201131,1708929041847,-500.0,0.00019452,2]
[315201132,1708929041856,-500.0,0.00019452,2]
[315201133,1708929041865,-500.0,0.00019452,2]
[315201134,1708929041875,-500.0,0.00019452,2]
[315201135,1708929041884,-503.86862046,0.00019452,2]
[315201136,1708929041893,-500.0,0.00019452,2]
[315201137,1708929041901,-500.0,0.00019452,2]
[315201138,1708929041910,-501.23396073,0.00019452,2]
[315201139,1708929041920,-500.0,0.00019452,2]
[315201140,1708929041929,-500.0,0.00019452,2]
[315201141,1708929041938,-503.09460402,0.00019452,2]
[315201142,1708929041947,-500.0,0.00019452,2]
[315201143,1708929041956,-209.81817441,0.00019452,2]
[315201144,1708929041966,-436.57904397,0.00019452,2]
[315201145,1708929041975,-500.0,0.00019452,2]
[315201146,1708929041984,-500.0,0.00019452,2]
[315201147,1708929041993,-278.92397509,0.00019452,2]
[315201148,1708929042002,-500.0,0.00019452,2]
[315201149,1708929042011,-378.09595608,0.00019452,2]
[315201150,1708929042020,-500.0,0.00019452,2]
[315201151,1708929042030,-610.38,0.00019452,2]
[315201152,1708929042038,-500.0,0.00019452,2]
[315201153,1708929042047,-1400.55,0.00019452,2]
[315201154,1708929042055,-504.63239658,0.00019452,2]
[315201155,1708929042064,-504.21335184,0.00019452,2]
[315201156,1708929042073,-773.11,0.00019452,2]
[315201157,1708929042082,-500.0,0.00019452,2]
[315201158,1708929042091,-500.0,0.00019452,2]
[315201159,1708929042100,-500.0,0.00019452,2]
[315201160,1708929042109,-500.0,0.00019452,2]
[315201161,1708929042117,-176.66942179,0.00019452,2]
[315201162,1708929042126,-500.0,0.00019452,2]
[315201163,1708929042135,-500.0,0.00019452,2]
[315201164,1708929042145,-500.79176669,0.00019452,2]
[315201165,1708929042157,-500.0,0.00019452,2]
[315201166,1708929042165,-500.94944783,0.00019452,2]
[315201167,1708929042174,-500.0,0.00019452,2]
[315201168,1708929042183,-500.0,0.00019452,2]
[315201169,1708929042193,-2159.94,0.00019452,2]
[315201170,1708929042202,-500.0,0.00019452,2]
[315201171,1708929042211,-500.0,0.00019452,2]